fUSD/lending_fUSD_20260406
["ID","MTS","AMOUNT","RATE_DAILY","PERIOD"]
[419912395,1775500246248,-180.71614038,0.00016,2]
[419912396,1775500246260,-3973.95170521,0.00016,2]
[419912397,1775500246275,-59835.9315669,0.00016,2]
[419912398,1775500246293,-87223.38925024,0.00016,2]
[419912399,1775500246309,-281.32,0.00016,2]
[419912400,1775500246321,-424.99325339,0.00016,2]
[419912433,1775500247836,-195.684329,0.00015447,7]
[419912434,1775500247846,-1449.94109349,0.00015757,2]
[419912435,1775500247855,-193140.36038971,0.00016,2]
[419912443,1775501351386,-168.42592096,9.786e-05,2]
[419912444,1775501352230,-197.04407904,9.786e-05,2]
[419912445,1775501356122,-250.0,0.00010406,2]
[419912446,1775501356143,-250.0,0.00010765,2]
[419912447,1775501360108,-237.64939792,0.00010926,2]
[419912448,1775501360130,-63.04549065,0.00011026,2]
[419912449,1775501431631,-200.0,0.00011954,2]
[419912450,1775501431641,-163.7,0.00012011,2]
[419912451,1775501431650,-1520.00262742,0.00012059,2]
[419912452,1775501431740,-479.99737258,0.00012059,2]
[419912453,1775501431751,-461.39,0.00012062,2]
[419912454,1775501431761,-165.43,0.00012107,2]
[419912455,1775501431772,-150.0,0.0001211,2]
[419912456,1775501431782,-1200.0,0.00012225,2]
[419912457,1775501431792,-152.0,0.00012227,3]
[419912458,1775501431802,-629.18078885,0.00012293,2]
[419912459,1775501431815,-970.81921115,0.00012293,2]
[419912460,1775501431825,-9400.36101332,0.00012385,2]
[419912467,1775501437850,-282.54330179,0.00012384,2]
[419912468,1775501437904,-182.98145108,0.00012384,2]
[419912469,1775501437914,-500.0,0.00012384,2]
[419912470,1775501437923,-482.34061895,0.00012384,2]
[419912471,1775501437932,-725.42457641,0.00012385,2]
[419912472,1775501437958,-13176.94293301,0.00012385,2]
[419912473,1775501438013,-1855.85595096,0.00012385,2]
[419912474,1775501438025,-1474841.4155263,0.00012385,2]
[419912475,1775501438034,-152.0,0.00012447,4]
[419912476,1775501438043,-150.0,0.00012484,2]
[419912477,1775501438053,-150.0,0.000125,2]
[419912478,1775501438062,-442.4647119,0.000125,2]
[419912479,1775501438072,-1513.73542644,0.00012567,2]
[419912480,1775501438081,-10879.48866826,0.00012567,2]
[419912481,1775501438091,-200.0,0.00012577,2]
[419912482,1775501438100,-151.0,0.00012577,2]
[419912483,1775501438109,-151.0,0.00012577,2]
[419912484,1775501438118,-151.0,0.00012577,2]
[419912485,1775501438127,-151.0,0.00012577,2]
[419912486,1775501438137,-151.0,0.00012577,2]
[419912487,1775501438146,-151.0,0.00012577,2]
[419912488,1775501438155,-260.35709355,0.00012577,2]
[419912489,1775501438164,-500.0,0.00012577,2]
[419912490,1775501438174,-151.6719064,0.00012577,2]
[419912491,1775501438183,-3382.515,0.00012584,2]
[419912492,1775501438192,-205.032,0.00012584,2]
[419912493,1775501438201,-900543.2531,0.00012585,2]
[419912494,1775501438211,-152.0,0.00012667,5]
[419912495,1775501438220,-150.0,0.00012822,2]
[419912496,1775501438229,-150.0,0.00012822,2]
[419912497,1775501438238,-188.00662864,0.00012822,2]
[419912498,1775501438247,-164.7501591,0.00012822,2]
[419912499,1775501438256,-150.0,0.00012822,2]
[419912500,1775501438265,-150.0,0.00012822,2]
[419912501,1775501438276,-152.0,0.00012887,6]
[419912502,1775501438286,-200.0,0.00012938,2]
[419912503,1775501438295,-1513.73542644,0.00013043,2]
[419912504,1775501438304,-500.0,0.000131,2]
[419912505,1775501438314,-152.0,0.00013108,7]
[419912506,1775501438323,-200.0,0.00013125,2]
[419912507,1775501438332,-250.0,0.00013233,2]
[419912508,1775501438342,-152.0,0.00013328,8]
[419912509,1775501438351,-3240.0,0.00013425,2]
[419912510,1775501438361,-1680.0,0.00013448,2]
[419912511,1775501438370,-1513.73542644,0.00013519,2]
[419912512,1775501438379,-152.0,0.00013548,9]
[419912513,1775501438388,-2000.0,0.00013567,2]
[419912514,1775501438398,-255.0,0.00013583,2]
[419912515,1775501438407,-200.0,0.00013673,2]
[419912516,1775501438416,-1143.91201593,0.00013685,2]
[419912517,1775501438425,-500.0,0.00013698,2]
[419912518,1775501438435,-500.0,0.00013698,2]
[419912519,1775501438444,-500.0,0.00013698,2]
[419912520,1775501438453,-500.0,0.00013698,2]
[419912521,1775501438463,-500.0,0.00013698,2]
[419912522,1775501438472,-500.0,0.00013698,2]
[419912523,1775501438481,-500.0,0.00013698,2]
[419912524,1775501438490,-500.0,0.00013698,2]
[419912525,1775501438499,-500.0,0.00013698,2]
[419912526,1775501438508,-500.0,0.00013698,2]
[419912527,1775501438518,-559.50723655,0.00013698,2]
[419912528,1775501438527,-500.0,0.00013698,2]
[419912529,1775501438536,-500.0,0.00013698,2]
[419912530,1775501438545,-500.0,0.00013698,2]
[419912531,1775501438555,-500.0,0.00013698,2]
[419912532,1775501438564,-500.0,0.00013698,2]
[419912533,1775501438573,-500.0,0.00013698,2]
[419912534,1775501438582,-500.0,0.00013698,2]
[419912535,1775501438591,-500.0,0.00013698,2]
[419912536,1775501438600,-500.0,0.00013698,2]
[419912537,1775501438610,-500.0,0.00013698,2]
[419912538,1775501438619,-500.0,0.00013698,2]
[419912539,1775501438628,-500.0,0.00013698,2]
[419912540,1775501438638,-500.0,0.00013698,2]
[419912541,1775501438647,-500.0,0.00013698,2]
[419912542,1775501438656,-500.0,0.00013698,2]
[419912543,1775501438666,-500.0,0.00013698,2]
[419912544,1775501438676,-500.0,0.00013698,2]
[419912545,1775501438685,-500.0,0.00013698,2]
[419912546,1775501438695,-500.0,0.00013698,2]
[419912547,1775501438704,-500.0,0.00013698,2]
[419912548,1775501438714,-500.0,0.00013698,2]
[419912549,1775501438723,-500.0,0.00013698,2]
[419912550,1775501438733,-500.0,0.00013698,2]
[419912551,1775501438742,-500.0,0.00013698,2]
[419912552,1775501438752,-502.76097898,0.00013698,2]
[419912553,1775501438762,-500.0,0.00013698,2]
[419912554,1775501438771,-500.0,0.00013698,2]
[419912555,1775501438782,-500.0,0.00013698,2]
[419912556,1775501438792,-500.0,0.00013698,2]
[419912557,1775501438801,-228.23268139,0.00013699,2]
[419912558,1775501438810,-150.0,0.00013699,2]
[419912559,1775501438819,-150.0,0.00013699,2]
[419912560,1775501438828,-150.0,0.00013699,2]
[419912561,1775501438838,-150.0,0.00013699,2]
[419912562,1775501438848,-1441.85,0.00013699,2]
[419912563,1775501438857,-3844.31,0.000137,2]
[419912564,1775501438866,-3844.31,0.000137,2]
[419912565,1775501438876,-152.0,0.00013768,10]
[419912566,1775501438885,-167.8408,0.000138,2]
[419912567,1775501438894,-590.03930427,0.00013823,2]
[419912568,1775501438903,-1600.0,0.0001383,2]
[419912569,1775501438912,-150.0,0.00013973,2]
[419912570,1775501438921,-150.0,0.00013973,2]
[419912571,1775501438931,-150.0,0.00013973,2]
[419912572,1775501438940,-150.0,0.00013973,2]
[419912573,1775501438949,-202.28005264,0.00013982,2]
[419912574,1775501438958,-152.0,0.00013989,11]
[419912575,1775501438968,-1513.73542644,0.00013995,2]
[419912576,1775501438978,-855.85192254,0.00014006,2]
[419912577,1775501438987,-985.59,0.00014065,2]
[419912578,1775501438996,-1300.0,0.00014082,2]
[419912579,1775501439311,-3000.0,0.00014082,2]
[419912580,1775501439320,-500.0,0.00014084,2]
[419912581,1775501439330,-972.87753508,0.00014173,2]
[419912582,1775501439339,-152.0,0.00014209,12]
[419912583,1775501439348,-150.0,0.00014247,2]
[419912584,1775501439358,-150.0,0.00014247,2]
[419912585,1775501439367,-304.11380504,0.00014261,2]
[419912586,1775501439376,-151.0,0.00014268,2]
[419912587,1775501439385,-229.04,0.0001427,2]
[419912588,1775501439394,-500.0,0.0001427,2]
[419912589,1775501439403,-500.0,0.0001427,2]
[419912590,1775501439412,-500.0,0.0001427,2]
[419912591,1775501439422,-500.0,0.0001427,2]
[419912592,1775501439431,-500.0,0.0001427,2]
[419912593,1775501439440,-500.0,0.0001427,2]
[419912594,1775501439450,-500.0,0.0001427,2]
[419912595,1775501439459,-500.0,0.0001427,2]
[419912596,1775501439468,-500.0,0.0001427,2]
[419912597,1775501439477,-500.0,0.0001427,2]
[419912598,1775501439488,-500.0,0.0001427,2]
[419912599,1775501439497,-500.0,0.0001427,2]
[419912600,1775501439506,-500.0,0.0001427,2]
[419912601,1775501439516,-500.0,0.0001427,2]
[419912602,1775501439525,-500.0,0.0001427,2]
[419912603,1775501439535,-500.0,0.0001427,2]
[419912604,1775501439545,-500.0,0.0001427,2]
[419912605,1775501439554,-500.0,0.0001427,2]
[419912606,1775501439563,-500.0,0.0001427,2]
[419912607,1775501439573,-500.0,0.0001427,2]
[419912608,1775501439583,-503.57594394,0.0001427,2]
[419912609,1775501439593,-500.0,0.0001427,2]
[419912610,1775501439603,-500.0,0.0001427,2]
[419912611,1775501439612,-500.0,0.0001427,2]
[419912612,1775501439622,-500.0,0.0001427,2]
[419912613,1775501439631,-500.0,0.0001427,2]
[419912614,1775501439640,-500.0,0.0001427,2]
[419912615,1775501439650,-500.0,0.0001427,2]
[419912616,1775501439660,-500.0,0.0001427,2]
[419912617,1775501439670,-500.0,0.0001427,2]
[419912618,1775501439679,-500.0,0.0001427,2]
[419912619,1775501439688,-500.0,0.0001427,2]
[419912620,1775501439697,-500.0,0.0001427,2]
[419912621,1775501439706,-500.0,0.0001427,2]
[419912622,1775501439716,-500.0,0.0001427,2]
[419912623,1775501439725,-500.0,0.0001427,2]
[419912624,1775501439735,-500.0,0.0001427,2]
[419912625,1775501439744,-500.0,0.0001427,2]
[419912626,1775501439753,-500.0,0.0001427,2]
[419912627,1775501439762,-500.0,0.0001427,2]
[419912628,1775501439772,-500.0,0.0001427,2]
[419912629,1775501439781,-500.0,0.0001427,2]
[419912630,1775501439791,-500.0,0.0001427,2]
[419912631,1775501439801,-500.0,0.0001427,2]
[419912632,1775501439810,-500.0,0.0001427,2]
[419912633,1775501439820,-500.0,0.0001427,2]
[419912634,1775501439829,-500.0,0.0001427,2]
[419912635,1775501439838,-500.0,0.0001427,2]
[419912636,1775501439848,-500.0,0.00014273,2]
[419912637,1775501439858,-500.0,0.00014273,2]
[419912638,1775501439866,-500.16623209,0.00014273,2]
[419912639,1775501439876,-882.12397693,0.00014274,2]
[419912640,1775501439885,-447.85986146,0.000143,2]
[419912641,1775501439895,-202.28005263,0.00014302,2]
[419912642,1775501439904,-882.12397693,0.00014329,2]
[419912643,1775501439913,-500.0,0.00014338,2]
[419912645,1775501439922,-500.0,0.00014338,2]
[419912646,1775501439931,-500.0,0.00014338,2]
[419912647,1775501439940,-985.59,0.00014339,2]
[419912648,1775501439949,-882.12397693,0.00014384,2]
[419912649,1775501439959,-1573.0,0.000144,2]
[419912650,1775501439968,-2811.0,0.000144,2]
[419912651,1775501439978,-160.0,0.00014407,2]
[419912652,1775501439987,-152.0,0.00014429,13]
[419912653,1775501439996,-882.12397693,0.00014438,2]
[419912654,1775501440006,-163.28038249,0.0001444,2]
[419912655,1775501440017,-620.46209973,0.0001444,2]
[419912656,1775501440026,-1513.73542644,0.00014472,2]
[419912657,1775501440035,-882.12397693,0.00014493,2]
[419912658,1775501440044,-160.0,0.00014493,7]
[419912659,1775501440054,-172.985914,0.00014493,7]
[419912660,1775501440063,-185.971829,0.00014493,7]
[419912661,1775501440073,-160.0,0.00014493,7]
[419912662,1775501440082,-650.402052,0.00014493,7]
[419912663,1775501440091,-1140.804104,0.00014493,7]
[419912664,1775501440100,-199.480472,0.00014493,2]
[419912665,1775501440110,-166.695519,0.00014493,7]
[419912666,1775501440119,-500.0,0.00014509,2]
[419912667,1775501440128,-500.0,0.00014509,2]
[419912668,1775501440137,-622.0,0.0001451,2]
[419912669,1775501440147,-3523.0,0.0001451,2]
[419912670,1775501440156,-1052.848,0.0001451,2]
[419912671,1775501440165,-1347.0,0.0001451,2]
[419912672,1775501440174,-150.679,0.0001451,2]
[419912673,1775501440184,-1263.0,0.0001451,2]
[419912674,1775501440193,-415.0,0.0001451,2]
[419912675,1775501440202,-3771.0,0.0001451,2]
[419912676,1775501440211,-2467.17072911,0.0001453,2]
[419912677,1775501440220,-229.04,0.00014544,2]
[419912678,1775501440230,-238.107621,0.00014566,7]
[419912679,1775501440239,-160.0,0.00014566,7]
[419912680,1775501440248,-367.416365,0.00014566,7]
[419912681,1775501440258,-574.83273,0.00014566,7]
[419912682,1775501440268,-882.12397693,0.00014575,2]
[419912683,1775501440277,-985.59,0.00014613,2]
[419912684,1775501440286,-202.28005263,0.00014621,2]
[419912685,1775501440295,-882.12397693,0.0001463,2]
[419912686,1775501440305,-152.0,0.00014649,14]
[419912687,1775501440314,-882.12397693,0.00014685,2]
[419912688,1775501440324,-162.0,0.0001472,2]
[419912689,1775501440333,-2811.0,0.0001472,2]
[419912690,1775501440343,-1727.0,0.0001472,2]
[419912691,1775501440352,-2811.0,0.0001472,2]
[419912692,1775501440361,-882.12397693,0.0001474,2]
[419912693,1775501440371,-347.65580151,0.00014762,2]
[419912694,1775501440380,-433.0,0.00014781,2]
[419912695,1775501440389,-2351.0,0.00014792,2]
[419912696,1775501440399,-882.12397693,0.00014795,2]
[419912697,1775501440408,-229.04,0.00014818,2]
[419912698,1775501440417,-1000.0,0.00014821,2]
[419912699,1775501440426,-882.12397693,0.00014849,2]
[419912700,1775501440435,-578.20924308,0.00014863,2]
[419912701,1775501440444,-200.0,0.00014863,2]
[419912702,1775501440454,-695.39793187,0.00014863,2]
[419912703,1775501440463,-500.0,0.00014863,2]
[419912704,1775501440472,-500.0,0.00014863,2]
[419912705,1775501440481,-500.0,0.00014863,2]
[419912706,1775501440490,-500.0,0.00014863,2]
[419912707,1775501440500,-500.0,0.00014863,2]
[419912708,1775501440509,-500.0,0.00014863,2]
[419912709,1775501440518,-500.0,0.00014863,2]
[419912710,1775501440528,-500.0,0.00014863,2]
[419912711,1775501440537,-500.0,0.00014863,2]
[419912712,1775501440546,-500.0,0.00014863,2]
[419912713,1775501440557,-500.0,0.00014863,2]
[419912714,1775501440566,-500.0,0.00014863,2]
[419912715,1775501440575,-500.0,0.00014863,2]
[419912716,1775501440585,-1377.42282659,0.00014863,2]
[419912717,1775501440594,-743.50770149,0.00014863,2]
[419912718,1775501440604,-182.64228778,0.00014863,2]
[419912719,1775501440613,-174.61919141,0.00014863,2]
[419912720,1775501440622,-749.3666441,0.00014863,2]
[419912721,1775501440632,-349.4458247,0.00014863,2]
[419912722,1775501440641,-152.0,0.00014869,15]
[419912723,1775501440650,-869.63,0.00014887,2]
[419912724,1775501440660,-882.12397693,0.00014904,2]
[419912725,1775501440669,-500.0,0.00014904,2]
[419912726,1775501440678,-500.0,0.00014918,2]
[419912727,1775501440688,-202.28005263,0.00014941,2]
[419912728,1775501440697,-1513.73542644,0.00014948,2]
[419912729,1775501440707,-500.0,0.00014973,2]
[419912730,1775501440716,-500.0,0.00014999,2]
[419912731,1775501440725,-500.0,0.00014999,2]
[419912732,1775501440735,-150.0,0.00015,7]
[419912733,1775501440744,-187.8037,0.00015,2]
[419912734,1775501440753,-10000.0,0.00015,15]
[419912735,1775501440763,-858.0,0.00015,15]
[419912736,1775501440773,-1281.0,0.00015,2]
[419912737,1775501440782,-163.7,0.00015014,2]
[419912738,1775501440791,-500.0,0.00015028,2]
[419912739,1775501440802,-2811.0,0.0001504,2]
[419912740,1775501440812,-1573.0,0.0001504,2]
[419912741,1775501440821,-1573.0,0.0001504,2]
[419912742,1775501440831,-500.0,0.00015058,2]
[419912743,1775501440840,-2000.0,0.00015058,2]
[419912744,1775501440849,-500.0,0.00015068,3]
[419912745,1775501440858,-800.0,0.00015068,2]
[419912746,1775501440867,-2000.0,0.00015074,2]
[419912747,1775501440876,-500.0,0.00015083,2]
[419912748,1775501440885,-152.0,0.0001509,16]
[419912749,1775501440894,-229.04,0.00015092,2]
[419912750,1775501440903,-447.85986144,0.000151,2]
[419912751,1775501440913,-500.0,0.00015138,2]
[419912752,1775501440922,-500.0,0.00015193,2]
[419912753,1775501440931,-262.14623761,0.000152,2]
[419912754,1775501440940,-150.0,0.000152,2]
[419912755,1775501440949,-1148.372646,0.000152,2]
[419912756,1775501440958,-339.13280854,0.000152,2]
[419912757,1775501440967,-160.38617762,0.00015205,2]
[419912758,1775501440977,-2467.17072911,0.00015215,2]
[419912759,1775501440986,-235.889883,0.00015218,7]
[419912760,1775501440995,-886.911889,0.00015218,7]
[419912761,1775501441005,-500.0,0.00015248,2]
[419912762,1775501441014,-161.71,0.00015259,2]
[419912763,1775501441023,-202.28005263,0.00015261,2]
[419912764,1775501441032,-501.022316,0.00015294,7]
[419912765,1775501441042,-500.0,0.00015303,2]
[419912766,1775501441051,-152.0,0.0001531,17]
[419912767,1775501441061,-500.0,0.00015316,2]
[419912768,1775501441071,-213.42825389,0.00015341,2]
[419912769,1775501441080,-160.38617762,0.00015342,2]
[419912770,1775501441089,-500.0,0.00015358,2]
[419912771,1775501441099,-1573.0,0.0001536,2]
[419912772,1775501441109,-2811.0,0.0001536,2]
[419912773,1775501441118,-2811.0,0.0001536,2]
[419912774,1775501441128,-2811.0,0.0001536,2]
[419912775,1775501441137,-2081.0,0.0001536,2]
[419912776,1775501441147,-483.58829861,0.00015362,2]
[419912777,1775501441156,-229.0898952,0.00015366,2]
[419912778,1775501441165,-1600.0,0.00015367,2]
[419912779,1775501441175,-1500.0,0.00015368,2]
[419912780,1775501441184,-2780.0,0.00015379,2]
[419912781,1775501441194,-2780.0,0.00015385,2]
[419912782,1775501441203,-2780.0,0.00015386,2]
[419912783,1775501441212,-2780.0,0.00015399,2]
[419912784,1775501441222,-1000.0,0.000154,2]
[419912785,1775501441231,-200.0,0.00015411,2]
[419912786,1775501441241,-1428.38747117,0.00015411,2]
[419912787,1775501441250,-478.71648202,0.00015411,2]
[419912788,1775501441259,-181.08010149,0.00015411,2]
[419912789,1775501441269,-500.0,0.00015413,2]
[419912790,1775501441278,-1513.73542644,0.00015424,2]
[419912791,1775501441287,-1069.0,0.00015424,2]
[419912792,1775501441296,-1269.0,0.00015424,2]
[419912793,1775501441306,-1300.0,0.00015452,2]
[419912794,1775501441315,-3000.0,0.00015452,2]
[419912795,1775501441324,-161.71,0.00015457,2]
[419912796,1775501441334,-500.0,0.00015468,2]
[419912797,1775501441343,-160.38617762,0.00015479,2]
[419912798,1775501441352,-2780.0,0.00015492,2]
[419912799,1775501441362,-500.0,0.00015499,2]
[419912800,1775501441371,-500.0,0.00015499,2]
[419912801,1775501441380,-500.0,0.00015499,2]
[419912802,1775501441389,-500.0,0.00015499,2]
[419912803,1775501441398,-500.0,0.00015499,2]
[419912804,1775501441408,-500.0,0.00015499,2]
[419912805,1775501441417,-500.0,0.00015499,2]
[419912806,1775501441426,-500.0,0.00015499,2]
[419912807,1775501441435,-500.0,0.00015499,2]
[419912808,1775501441444,-500.0,0.00015499,2]
[419912809,1775501441454,-500.0,0.00015499,2]
[419912810,1775501441463,-500.0,0.00015499,2]
[419912811,1775501441472,-500.0,0.00015499,2]
[419912812,1775501441482,-500.0,0.00015499,2]
[419912813,1775501441492,-500.0,0.00015499,2]
[419912814,1775501441501,-500.0,0.00015499,2]
[419912815,1775501441511,-500.0,0.00015499,2]
[419912816,1775501441520,-152.0,0.0001553,18]
[419912817,1775501441530,-2780.0,0.00015531,2]
[419912818,1775501441540,-2780.0,0.00015558,2]
[419912819,1775501441550,-2780.0,0.0001557,2]
[419912820,1775501441559,-202.28005263,0.0001558,2]
[419912821,1775501441569,-2780.0,0.0001559,2]
[419912822,1775501441578,-160.38617762,0.00015616,2]
[419912823,1775501441588,-6619.71881334,0.00015626,2]
[419912824,1775501441597,-2780.0,0.00015659,2]
[419912825,1775501441607,-162.0,0.0001568,2]
[419912826,1775501441616,-2811.0,0.0001568,2]
[419912827,1775501441626,-2811.0,0.0001568,2]
[419912828,1775501441635,-1144.38176459,0.0001568,2]
[419912829,1775501441644,-1149.35956519,0.0001568,2]
[419912830,1775501441653,-1883.48135908,0.0001568,2]
[419912831,1775501441663,-362.7,0.00015684,2]
[419912832,1775501441673,-2000.0,0.000157,2]
[419912833,1775501441682,-2780.0,0.0001571,2]
[419912834,1775501441692,-160.38617762,0.00015726,2]
[419912835,1775501441701,-1000.0,0.00015738,2]
[419912836,1775501441711,-1000.0,0.00015739,2]
[419912837,1775501441720,-1000.0,0.00015743,2]
[419912838,1775501441732,-152.0,0.0001575,19]
[419912839,1775501441742,-6619.71881332,0.00015763,2]
[419912840,1775501441752,-288.0,0.00015766,2]
[419912841,1775501441761,-1000.0,0.00015772,2]
[419912842,1775501441771,-500.0,0.00015775,2]
[419912843,1775501441780,-1000.0,0.00015776,2]
[419912844,1775501441790,-364.30599819,0.0001579,2]
[419912845,1775501441799,-200.0787906,0.00015799,2]
[419912846,1775501441808,-198.36570913,0.00015799,2]
[419912847,1775501441817,-771.95625003,0.000158,2]
[419912848,1775501441827,-200.0,0.00015805,2]
[419912849,1775501441836,-500.0,0.00015838,2]
[419912850,1775501441846,-500.0,0.00015838,2]
[419912851,1775501441855,-500.0,0.00015838,2]
[419912852,1775501441864,-500.0,0.00015838,2]
[419912853,1775501441874,-500.0,0.00015838,2]
[419912854,1775501441883,-500.0,0.00015838,2]
[419912855,1775501441892,-500.0,0.00015838,2]
[419912856,1775501441902,-500.0,0.00015838,2]
[419912857,1775501441911,-500.0,0.00015838,2]
[419912858,1775501441921,-500.0,0.00015838,2]
[419912859,1775501441930,-500.0,0.00015838,2]
[419912860,1775501441940,-500.0,0.00015838,2]
[419912861,1775501441949,-500.0,0.00015838,2]
[419912862,1775501441958,-500.0,0.00015838,2]
[419912863,1775501441967,-1000.0,0.00015848,2]
[419912864,1775501441977,-198.36570913,0.0001585,2]
[419912865,1775501441986,-1441.85,0.00015862,2]
[419912866,1775501441996,-160.38617762,0.00015863,2]
[419912867,1775501442006,-288.0,0.00015867,2]
[419912868,1775501442016,-500.0,0.00015872,2]
[419912869,1775501442025,-150.0,0.00015878,2]
[419912870,1775501442034,-150.0,0.00015888,2]
[419912871,1775501442043,-500.0,0.00015888,2]
[419912872,1775501442053,-500.0,0.00015889,2]
[419912873,1775501442062,-500.0,0.00015889,2]
[419912874,1775501442072,-500.0,0.00015889,2]
[419912875,1775501442081,-500.0,0.00015889,2]
[419912876,1775501442091,-500.0,0.00015889,2]
[419912877,1775501442101,-500.0,0.00015889,2]
[419912878,1775501442110,-500.0,0.00015889,2]
[419912879,1775501442119,-186.12488173,0.00015889,2]
[419912880,1775501442129,-500.0,0.00015889,2]
[419912881,1775501442138,-500.0,0.00015889,2]
[419912882,1775501442147,-500.0,0.00015889,2]
[419912883,1775501442157,-500.0,0.00015889,2]
[419912884,1775501442166,-500.0,0.00015889,2]
[419912885,1775501442175,-500.0,0.00015889,2]
[419912886,1775501442184,-500.0,0.00015889,2]
[419912887,1775501442194,-500.0,0.00015889,2]
[419912888,1775501442203,-500.0,0.00015889,2]
[419912889,1775501442212,-500.0,0.00015889,2]
[419912890,1775501442221,-500.0,0.00015889,2]
[419912891,1775501442230,-500.0,0.00015889,2]
[419912892,1775501442240,-500.0,0.00015889,2]
[419912893,1775501442249,-500.0,0.00015889,2]
[419912894,1775501442259,-609.59532014,0.00015889,2]
[419912895,1775501442268,-500.0,0.00015889,2]
[419912896,1775501442277,-500.0,0.00015889,2]
[419912897,1775501442287,-500.0,0.00015889,2]
[419912898,1775501442296,-500.0,0.00015889,2]
[419912899,1775501442306,-500.0,0.00015889,2]
[419912900,1775501442315,-500.0,0.00015889,2]
[419912901,1775501442325,-500.0,0.00015889,2]
[419912902,1775501442334,-500.0,0.00015889,2]
[419912903,1775501442343,-500.0,0.00015889,2]
[419912904,1775501442352,-500.0,0.00015889,2]
[419912905,1775501442362,-500.0,0.00015889,2]
[419912906,1775501442372,-500.0,0.00015889,2]
[419912907,1775501442381,-500.0,0.00015889,2]
[419912908,1775501442390,-500.0,0.00015889,2]
[419912909,1775501442399,-500.0,0.00015889,2]
[419912910,1775501442408,-500.0,0.00015889,2]
[419912911,1775501442418,-500.0,0.00015889,2]
[419912912,1775501442427,-500.0,0.00015889,2]
[419912913,1775501442436,-500.0,0.00015889,2]
[419912914,1775501442446,-500.0,0.00015889,2]
[419912915,1775501442455,-500.0,0.00015889,2]
[419912916,1775501442464,-500.0,0.00015889,2]
[419912917,1775501442474,-500.0,0.00015889,2]
[419912918,1775501442483,-500.0,0.00015889,2]
[419912919,1775501442492,-500.0,0.00015889,2]
[419912920,1775501442502,-500.0,0.00015889,2]
[419912921,1775501442511,-500.0,0.00015889,2]
[419912922,1775501442520,-500.0,0.00015889,2]
[419912923,1775501442530,-508.61892667,0.00015889,2]
[419912924,1775501442539,-500.0,0.00015889,2]
[419912925,1775501442549,-500.0,0.00015889,2]
[419912926,1775501442558,-500.0,0.00015889,2]
[419912928,1775501442567,-597.32595487,0.00015889,2]
[419912930,1775501442577,-500.0,0.00015889,2]
[419912931,1775501442586,-500.0,0.00015889,2]
[419912932,1775501442596,-500.0,0.00015889,2]
[419912934,1775501442605,-500.0,0.00015889,2]
[419912935,1775501442614,-500.0,0.00015889,2]
[419912937,1775501442623,-500.0,0.00015889,2]
[419912939,1775501442632,-469.05755082,0.00015889,2]
[419912941,1775501442845,-30.94244918,0.00015889,2]
[419912942,1775501442855,-500.0,0.00015889,2]
[419912943,1775501442864,-134.05755082,0.00015889,2]
[419912944,1775501442912,-365.94244918,0.00015889,2]
[419912945,1775501442922,-500.0,0.00015889,2]
[419912946,1775501442931,-500.0,0.00015889,2]